Workbook

Sheet Opskrifter
A2: Menu | B2: ½ kylling
A4: Ingridienser | B4: Indkøb | C4: Enhed
A6: Agurkesalat | B6: 1 | C6: =IFERROR(VLOOKUP(A6,Vare!$A$2:$I$840,4,FALSE),"") -> DS
A7: Kylling Griller 1300 g | B7: 1 | C7: =IFERROR(VLOOKUP(A7,Vare!$A$2:$I$840,4,FALSE),"") -> STK
A8: Remoulade | B8: 1 | C8: =IFERROR(VLOOKUP(A8,Vare!$A$2:$I$840,4,FALSE),"") -> FL
C9: =IFERROR(VLOOKUP(A9,Vare!$A$2:$I$840,4,FALSE),"") -> 
C10: =IFERROR(VLOOKUP(A10,Vare!$A$2:$I$840,4,FALSE),"") -> 
C11: =IFERROR(VLOOKUP(A11,Vare!$A$2:$I$840,4,FALSE),"") -> 
C12: =IFERROR(VLOOKUP(A12,Vare!$A$2:$I$840,4,FALSE),"") -> 
C13: =IFERROR(VLOOKUP(A13,Vare!$A$2:$I$840,4,FALSE),"") -> 
C14: =IFERROR(VLOOKUP(A14,Vare!$A$2:$I$840,4,FALSE),"") -> 
C15: =IFERROR(VLOOKUP(A15,Vare!$A$2:$I$840,4,FALSE),"") -> 
C16: =IFERROR(VLOOKUP(A16,Vare!$A$2:$I$840,4,FALSE),"") -> 
C17: =IFERROR(VLOOKUP(A17,Vare!$A$2:$I$840,4,FALSE),"") -> 
C18: =IFERROR(VLOOKUP(A18,Vare!$A$2:$I$840,4,FALSE),"") -> 
C19: =IFERROR(VLOOKUP(A19,Vare!$A$2:$I$840,4,FALSE),"") -> 
C20: =IFERROR(VLOOKUP(A20,Vare!$A$2:$I$840,4,FALSE),"") -> 
C21: =IFERROR(VLOOKUP(A21,Vare!$A$2:$I$840,4,FALSE),"") -> 
C22: =IFERROR(VLOOKUP(A22,Vare!$A$2:$I$840,4,FALSE),"") -> 
C23: =IFERROR(VLOOKUP(A23,Vare!$A$2:$I$840,4,FALSE),"") -> 
C24: =IFERROR(VLOOKUP(A24,Vare!$A$2:$I$840,4,FALSE),"") -> 
C25: =IFERROR(VLOOKUP(A25,Vare!$A$2:$I$840,4,FALSE),"") -> 
C26: =IFERROR(VLOOKUP(A26,Vare!$A$2:$I$840,4,FALSE),"") -> 
C27: =IFERROR(VLOOKUP(A27,Vare!$A$2:$I$840,4,FALSE),"") -> 
C28: =IFERROR(VLOOKUP(A28,Vare!$A$2:$I$840,4,FALSE),"") -> 

Sheet Vare
A1: Beskrivelse | B1: Mærke | C1: Faktureret antal | D1: Basisenhed | E1: Købt | F1: Salgsbeløb (faktisk) | G1: Stk. pris | H1: I alt | I1: Gruppe | J1: ½ kylling | K1: Apple pie | L1: Aspargessuppe | M1: Avocado m. rejer | N1: Bagt laks | O1: Barbecue kylling | P1: Biksemad | Q1: Boller i karry | R1: Brownie m. is | S1: Bruchetta | T1: Brunsviger | U1: Brændende kærlighed | V1: Buffalo chicken | W1: Burger | X1: Butter chicken | Y1: Butterdej m. skinke og broccoli | Z1: Butterdejspakker | AA1: Byg selv burger | AB1: Byg selv sandwich | AC1: Bøf bernaise | AD1: Bøf m. rødvinssauce | AE1: Bøf stroganoff | AF1: Camembert frites | AG1: Carbonara | AH1: Cheesecake | AI1: Chili con carne | AJ1: Chokolade fondant | AK1: Chokoladekage | AL1: Chokolademousse | AM1: Citronfromage | AN1: Citrontærte | AO1: Club sandwich | AP1: Coq au vin | AQ1: Creme brulee | AR1: Cremet pasta m. laks | AS1: Culottesteg | AT1: Cæsarsalat m. kylling | AU1: Dannebrogsgryde | AV1: Dansk bøf | AW1: Drømmekage | AX1: Dunse sandwich | AY1: Engelsk bøf | AZ1: Fish 'n' chips | BA1: Fisk | BB1: Fiskefilet m. remo | BC1: Fiskefrikadeller | BD1: Fiskesalat | BE1: Flæskesteg | BF1: Flæskestegssandwich | BG1: Forloren hare | BH1: Forårsruller | BI1: Fransk løgsuppe | BJ1: Frikadeller | BK1: Frikadeller m. hvidkål | BL1: Frikadeller m. kartofler | BM1: Frugtsalat m. råcreme | BN1: Frugtsuppe | BO1: Frugttærte | BP1: Fyldt kylling | BQ1: Fyldte peberfrugter | BR1: Gammeldaws oksesteg | BS1: Gammeldaws æblekage | BT1: Gazpacho | BU1: Glaseret skinke | BV1: Gratineret hvidløgsrejer | BW1: Gratineret torsk | BX1: Gravad laks | BY1: Grillspyd | BZ1: Græske kødboller | CA1: Gullash m. mos | CB1: Hakkebøf m. bløde løg | CC1: Hamburgerryg | CD1: Hamburgerryg m. grønt | CE1: Hellefisk | CF1: Helstegt kylling | CG1: Helstegt rødspætte | CH1: Herregårdsbøf | CI1: Herregårdsskinke | CJ1: Hindbærmousse | CK1: Hot wings | CL1: Hotdogs | CM1: Hønsesuppe | CN1: Indbagt laks | CO1: Is | CP1: Is m. vafler og guf | CQ1: Islagkage | CR1: Jordbær m. fløde | CS1: Jordskokkesuppe | CT1: Kalkunbryst | CU1: Kalv stegt som vildt | CV1: Kalve culotte | CW1: Kalvekoteletter | CX1: Kalvemørbrad | CY1: Kalvesteak m. pommes | CZ1: Kammusling | DA1: Karbonader | DB1: Karry würst | DC1: Karrysuppe | DD1: Kartoffelporresuppe | DE1: Kebabmix | DF1: Kokkens sorte gryde | DG1: Koldskål | DH1: Kong Frederiks livret | DI1: Koteletter i fad | DJ1: Krebinetter | DK1: Kylling | DL1: Kylling i karry | DM1: Kylling m. fries | DN1: Kylling m. kartofsalat | DO1: Kylling m. pommes | DP1: Kylling thai karry | DQ1: Kylling/spinat lasagne | DR1: Kyllinge-frikassé | DS1: Kyllingeoverlår m. pasta | DT1: Kyllingesandwich | DU1: Kylling-spinat lasagne | DV1: Kød/melbolle suppe | DW1: Lagkage | DX1: Laks m. hollandaise | DY1: Laks m. stuvet spinat | DZ1: Laksefillet | EA1: Lakseroulade | EB1: Laksetatar | EC1: Lammekølle | ED1: Lasagne | EE1: Limetærte | EF1: Mac 'n' cheese | EG1: Marineret mørbrad | EH1: Mazarin | EI1: Medister | EJ1: Mexi pandekager | EK1: Mexiburger | EL1: Mexicansk | EM1: Millionbøf | EN1: Moules frites | EO1: Mørbrad m. bacon | EP1: Mørbradgryde | EQ1: Nachos | ER1: Nakkefilet | ES1: Nøddebund m. hindbærmousse | ET1: Oksefilet | EU1: Oksefilet | EV1: Ovnbagt laks | EW1: Pandekager m. is | EX1: Paneret stegt flæsk | EY1: Panna cotta | EZ1: Paprikagryde | FA1: Pariserbøf | FB1: Pasta | FC1: Pasta bolognese | FD1: Pasta m. kødboller | FE1: Pasta m. pesto/kylling | FF1: Pastaret | FG1: Peberbøf | FH1: Peberhakkebøf | FI1: Pirogger | FJ1: Pita | FK1: Pizza | FL1: Porchetta | FM1: Pulled pork burger | FN1: Purésuppe | FO1: Pølsehorn | FP1: Pølsemix | FQ1: Rabarbergrød | FR1: Rabarbersuppe m. is | FS1: Rabarbertrifli | FT1: Rejecocktail | FU1: Rejespyd | FV1: Ribbenstegsburger | FW1: Ris taffel | FX1: Risengrød | FY1: Rispapirsruller | FZ1: Ristet brød m. svampe | GA1: Rodfrugtssuppe | GB1: Rødgrød | GC1: Rødtunge | GD1: Saltimbocca | GE1: Skaldyrsrisotto | GF1: Skinkeschnitzler | GG1: Skipperlabscovs | GH1: Smuldrepai | GI1: Spareribs | GJ1: Steaks | GK1: Stegt flæsk | GL1: Stegt tun | GM1: Stegte rejer i hvidløg | GN1: Stjerneskud | GO1: Suppe | GP1: Svamperisotto | GQ1: Svensk pølseret | GR1: Svin a la creme | GS1: Svinekoteletter | GT1: Svinemørbrad | GU1: Svøbt asparges | GV1: Tacoskaller | GW1: Tarteletter | GX1: Tatar | GY1: T-bone steak | GZ1: Thaisuppe m. kylling | HA1: Tikka masala | HB1: Tiramisu | HC1: Toast | HD1: Tomatsuppe | HE1: Torsk | HF1: Torsk m. gratin | HG1: Tortelinni | HH1: Tunmousse m. salat | HI1: Tunsalat | HJ1: Tærte | HK1: Vafler a la Kuffen | HL1: Valnøddebrownie | HM1: Vaniljeis m. bær | HN1: Vildt gryde m. kartofmos | HO1: Wienerschnitzel | HP1: Wok | HQ1: Æggekage m. bacon | HR1: Ærtesuppe | HS1: Ørred
A2: 5-Kornsblanding | B2: HAVNEMØL | C2: 2 | D2: SÆK | F2: 334 | G2: =F2/C2 -> 167 | H2: =E2*G2 -> 0 | I2: Mel
A3: A38 Ymer 3,5% | B3: ARLA A38 | C3: 117 | D3: STK | F3: 1497.6 | G3: 12.8 | H3: =E3*G3 -> 0 | I3: Mælk & Smør
A4: Agurk m/Film DK | B4: GRØNT | C4: 76.5 | D4: KS | F4: 1593.81 | G4: 20.83411765 | H4: 0 | I4: Frisk Frugt og Grønt | W4: 2
A5: Agurk u/film | B5: GRØNT | C5: 77.55 | D5: KG | F5: 1452.19 | G5: 18.72585429 | H5: 0 | I5: Frisk Frugt og Grønt
A6: Agurkesalat | B6: SAMSØ | C6: 8 | D6: DS | F6: 306.64 | G6: 38.33 | H6: 0 | I6: Survarer m.v. | J6: 1
A7: Akaciehonning Squeeze | B7: JAKOBSEN | C7: 56 | D7: FL | F7: 1414 | G7: 25.25 | H7: 0 | I7: Kolonial
A8: All Bran Regular | B8: KELLOGGS | C8: 32 | D8: PK | F8: 954.28 | G8: 29.82125 | H8: 0 | I8: Kolonial
A9: Ananas stor | B9: GRØNT | C9: 25.72 | D9: KG | F9: 278 | G9: 10.80870918 | H9: 0 | I9: Frisk Frugt og Grønt
A10: Andebryst Berberi 300-400 g | B10: DK TRAD | C10: 34.127 | D10: KG | F10: 2935.26 | G10: 86.00990418 | H10: 0 | I10: Ænder & Kalkuner
A11: Andefedt | B11: ROUGIE | C11: 3 | D11: DS | F11: 146.46 | G11: 48.82 | H11: 0 | I11: Kødkonserves m.m.
A12: Andelår Berberi 300-400 g | B12: DK TRAD | C12: 10 | D12: KG | F12: 448.4 | G12: 44.84 | H12: 0 | I12: Ænder & Kalkuner
A13: Andelår Confit | B13: LABEYRIE | C13: 20 | D13: DS | F13: 2452.6 | G13: 122.63 | H13: 0 | I13: Kødkonserves m.m.
A14: Andepaté m/Madagascarpeber FR | B14: DELITAST | C14: 2 | D14: STK | F14: 183.85 | G14: 91.925 | H14: 0 | I14: Pålæg
A15: Ansjosfilet i Olie | B15: PONTE S | C15: 6 | D15: GL | F15: 207.42 | G15: 34.57 | H15: 0 | I15: Fiskekonserves
A16: Appelsiner Stor | B16: GRØNT | C16: 45 | D16: KG | F16: 558.75 | G16: 12.41666667 | H16: 0 | I16: Frisk Frugt og Grønt
A17: Appelsinjuice 1 ltr | B17: RYNKEBY | C17: 364 | D17: STK | F17: 5132.72 | G17: 14.10087912 | H17: 0 | I17: Saft Juice & Læskedrik
A18: Appelsinmarmelade Portion | B18: RYNKEBY | C18: 2 | D18: KRT | F18: 178.2 | G18: 89.1 | H18: 0 | I18: Marmelade Syltetøj & Grød
A19: Artiskokhjerte Grillet Kvart | B19: PONTE S | C19: 1 | D19: GL | F19: 56.18 | G19: 56.18 | H19: 0 | I19: Grøntkonserves
A20: Asier Strimler | B20: SAMSØ | C20: 4 | D20: DS | F20: 240.08 | G20: 60.02 | H20: 0 | I20: Survarer m.v.
A21: Asparges Grønne | B21: GRØNT | C21: 17 | D21: KG | F21: 1263.3 | G21: 74.31176471 | H21: 0 | I21: Frisk Frugt og Grønt
A22: Aspargessnitte m/Hoved Fin | B22: LIBITOP | C22: 3 | D22: DS | F22: 159.39 | G22: 53.13 | H22: 0 | I22: Grøntkonserves
A23: Aspic Pålægssky Mørk 30 ltr | B23: KNORR | C23: 1 | D23: DS | F23: 314.47 | G23: 314.47 | H23: 0 | I23: Tørsupper, Tørsauce m.v.
A24: Aubergine | B24: GRØNT | C24: 5 | D24: KG | F24: 90 | G24: 18 | H24: 0 | I24: Frisk Frugt og Grønt
A25: Avocado ReadyToEat | B25: GRØNT | C25: 28 | D25: KG | F25: 1592.56 | G25: 56.87714286 | H25: 0 | I25: Frisk Frugt og Grønt
A26: Bacon Gourmet Tørsaltet/Peber | B26: SUBLIM | C26: 22.16 | D26: KG | F26: 1515.96 | G26: 68.40974729 | H26: 0 | I26: Svinekødsprodukter
A27: Bacon Koge | B27: CATER F | C27: 21.94 | D27: KG | F27: 1341.85 | G27: 61.15998177 | H27: 0 | I27: Svinekødsprodukter
A28: Bacon Røget Skiver Køl | B28: TULIP | C28: 3 | D28: PK | F28: 214.92 | G28: 71.64 | H28: 0 | I28: Svinekødsprodukter
A29: Bacon Skiver | B29: QUALITY | C29: 148 | D29: PK | F29: 6606.72 | G29: 44.64 | H29: 0 | I29: Svinekødsprodukter
A30: Bacon Stege Tørsaltet Hel | B30: CATER F | C30: 10.41 | D30: KG | F30: 820.83 | G30: 78.85014409 | H30: 0 | I30: Svinekødsprodukter
A31: Bagekartofler | B31: GRØNT | C31: 270 | D31: KG | F31: 1801.15 | G31: 6.670925926 | H31: 0 | I31: Frisk Frugt og Grønt
A32: Bagepulver Almindelig | B32: TØRSLEFF | C32: 1 | D32: BT | F32: 52.08 | G32: 52.08 | H32: 0 | I32: Bageartikler
A33: Baguette Parisienne Stenovnsb | B33: KOHBERG | C33: 1 | D33: KRT | F33: 155.21 | G33: 155.21 | H33: 0 | I33: Brød Bake Off
A34: Bambusskud Strimler | B34: ASIANWOK | C34: 2 | D34: DS | F34: 48.16 | G34: 24.08 | H34: 0 | I34: Grøntkonserves
A35: Bananer | B35: GRØNT | C35: 136.8 | D35: KG | F35: 1890.6 | G35: 13.82017544 | H35: 0 | I35: Frisk Frugt og Grønt
A36: Basilikum i Bundt | B36: GRØNT | C36: 0.5 | D36: KG | F36: 142.5 | G36: 285 | H36: 0 | I36: Frisk Frugt og Grønt
A37: Basilikum i Stor Potte | B37: LEGRO | C37: 0.16 | D37: KG | F37: 39.3 | G37: 245.625 | H37: 0 | I37: Frisk Frugt og Grønt
A38: Basilikum Løst pakket i Bakke | B38: LEGRO | C38: 1.1 | D38: KG | F38: 417.56 | G38: 379.6 | H38: 0 | I38: Frisk Frugt og Grønt
A39: Bearnaiseessens | B39: BEAUVAIS | C39: 2 | D39: FL | F39: 90.66 | G39: 45.33 | H39: 0 | I39: Kolonial
A40: Benfri Sild | B40: TENAX | C40: 3 | D40: BT | F40: 266.28 | G40: 88.76 | H40: 0 | I40: Fiskekonserves
A41: Bierwurst | B41: CATERKØD | C41: 3.62 | D41: KG | F41: 171.55 | G41: 47.38950276 | H41: 0 | I41: Pålæg
A42: Birkes Blå | B42: SUN ISLA | C42: 13 | D42: PS | F42: 261.4 | G42: 20.10769231 | H42: 0 | I42: Kolonial
A43: Birkes Hvid | B43: SUN ISLA | C43: 13 | D43: PS | F43: 326.75 | G43: 25.13461538 | H43: 0 | I43: Kolonial
A44: BlackTiger Rå Pillet 16/20 | B44: NORDIC S | C44: 10 | D44: PS | F44: 1275 | G44: 127.5 | H44: 0 | I44: Fisk
A45: Blandet Saft A 1+4 10 ltr | B45: RYNKEBY | C45: 22 | D45: DK | F45: 4531.78 | G45: 205.99 | H45: 0 | I45: Saft Juice & Læskedrik
A46: Blegselleri DK | B46: GRØNT | C46: 1.998 | D46: KG | F46: 29.97 | G46: 15 | H46: 0 | I46: Frisk Frugt og Grønt
A47: Blokspegepølse m/Peber | B47: CATERKØD | C47: 5.3 | D47: KG | F47: 445.3 | G47: 84.01886792 | H47: 0 | I47: Pålæg
A48: Blomkål DK | B48: GRØNT | C48: 34 | D48: KG | F48: 522.54 | G48: 15.36882353 | H48: 0 | I48: Frisk Frugt og Grønt
A49: Blommer | B49: GRØNT | C49: 50 | D49: KG | F49: 1378.35 | G49: 27.567 | H49: 0 | I49: Frisk Frugt og Grønt
A50: Blåbær | B50: FRIGODAN | C50: 4 | D50: PS | F50: 183.6 | G50: 45.9 | H50: 0 | I50: Frugt Dybfrost
A51: Blåbær bk | B51: GRØNT | C51: 3.5 | D51: KG | F51: 485.84 | G51: 138.8114286 | H51: 0 | I51: Frisk Frugt og Grønt
A52: Blåmusling Hel Kogt 50/80 | B52: PLANETS | C52: 2 | D52: PS | F52: 61.8 | G52: 30.9 | H52: 0 | I52: Fisk
A53: Blåmusling i Net 1000g | B53: CAT FISK | C53: 25.3 | D53: KG | F53: 516.28 | G53: 20.40632411 | H53: 0 | I53: Fisk, fersk
A54: Bolchebeder | B54: GRØNT | C54: 5 | D54: KG | F54: 83.55 | G54: 16.71 | H54: 0 | I54: Frisk Frugt og Grønt
A55: Bordsalt Fint m/Jod | B55: JOZO | C55: 30 | D55: PK | F55: 148.5 | G55: 4.95 | H55: 0 | I55: Krydderier
A56: Bresaola Black Angus | B56: DELITAST | C56: 3.339 | D56: KG | F56: 697.85 | G56: =F56/C56 -> 208.9997005 | H56: 0 | I56: Pålæg
A57: Brie President 60% | B57: PRESIDEN | C57: 6.282 | D57: KG | F57: 419.01 | G57: 66.70009551 | H57: =E57*G57 -> 0 | I57: Ost
A58: Broccoli DK | B58: GRØNT | C58: 53.6 | D58: KG | F58: 1476.84 | G58: 27.55298507 | H58: 0 | I58: Frisk Frugt og Grønt
A59: Brombær bk | B59: GRØNT | C59: 4.875 | D59: KG | F59: 763.66 | G59: 156.6482051 | H59: 0 | I59: Frisk Frugt og Grønt
A60: Brombærpuré | B60: BOIRON | C60: 4 | D60: PK | F60: 440.68 | G60: 110.17 | H60: 0 | I60: Puré
A61: Brun Farin | B61: DANSUKKE | C61: 48 | D61: PK | F61: 399.84 | G61: 8.33 | H61: 0 | I61: Melis & øvrige sukkerprodukter
A62: Brunchpølse 20 g | B62: KOKKENS | C62: 4.376 | D62: KG | F62: 292.84 | G62: 66.91956124 | H62: 0 | I62: Svinekødsprodukter
A63: Brystflæsk u/Ben Top Køl | B63: AB SLAGT | C63: 30.46 | D63: KG | F63: 1393.55 | G63: 45.75016415 | H63: 0 | I63: Svinekød
A64: Brøndkarse i Potte | B64: GRØNT | C64: 0.4 | D64: KG | F64: 93.04 | G64: 232.6 | H64: 0 | I64: Frisk Frugt og Grønt
A65: Buko Alpeost 17% | B65: BUKO | C65: 20 | D65: STK | F65: 345.6 | G65: 17.28 | H65: 0 | I65: Ost
A66: Buko Champignonost Port 18% | B66: BUKO | C66: 4 | D66: KRT | F66: 366.04 | G66: 91.51 | H66: 0 | I66: Ost
A67: Buko Fløde/Smelteost Ass 20 g | B67: BUKO | C67: 1 | D67: KRT | F67: 90.92 | G67: 90.92 | H67: 0 | I67: Ost
A68: Buko Flødeost Pikant 20 g | B68: BUKO | C68: 9 | D68: KRT | F68: 818.28 | G68: 90.92 | H68: 0 | I68: Ost
A69: Buko Flødeost Pikant 23% | B69: BUKO | C69: 10 | D69: STK | F69: 131.6 | G69: 13.16 | H69: 0 | I69: Ost
A70: Buko Rejeost Portion 18% | B70: BUKO | C70: 9 | D70: KRT | F70: 823.59 | G70: 91.51 | H70: 0 | I70: Ost
A71: Buko Skinkeost Port 18% | B71: BUKO | C71: 7 | D71: KRT | F71: 640.57 | G71: 91.51 | H71: 0 | I71: Ost
A72: Bulgur Fin | B72: UNIFOOD | C72: 4 | D72: PS | F72: 50.52 | G72: 12.63 | H72: 0 | I72: Kolonial
A73: Bulgur Grov | B73: DURU | C73: 1 | D73: PS | F73: 38.2 | G73: 38.2 | H73: 0 | I73: Kolonial
A74: Burgerbolle Buffalo | B74: SCHULSTA | C74: 2 | D74: KRT | F74: 410 | G74: 205 | H74: 0 | I74: Brød Fast Food | W74: 55
A75: Buræg Str M Plast DK | B75: DANÆG | C75: 19 | D75: BK | F75: 617.5 | G75: 32.5 | H75: 0 | I75: Æg & Ægprodukter
A76: Butterdejsplade 46x56 cm | B76: HUMLUM | C76: 2 | D76: KRT | F76: 476.78 | G76: 238.39 | H76: 0 | I76: Brød Bake Off
A77: Bødker Bacon Røget | B77: BØDKER | C77: 27.04 | D77: KG | F77: 1429.25 | G77: 52.8568787 | H77: 0 | I77: Svinekødsprodukter
A78: Bødker Hamburgerryg u/Ben | B78: BØDKER | C78: 34.06 | D78: KG | F78: 1582.78 | G78: 46.47034645 | H78: 0 | I78: Svinekødsprodukter
A79: Bøfpeber Grøn | B79: SUNBEST | C79: 1 | D79: DS | F79: 14.17 | G79: 14.17 | H79: 0 | I79: Grøntkonserves
A80: Bønner Bobby | B80: GRØNT | C80: 6 | D80: KG | F80: 393.08 | G80: 65.51333333 | H80: 0 | I80: Frisk Frugt og Grønt
A81: Bønner friske nippet | B81: GRØNT | C81: 2 | D81: KG | F81: 198 | G81: 99 | H81: 0 | I81: Frisk Frugt og Grønt
A82: Camembert Paneret Forbagt | B82: CHEF S | C82: 2 | D82: KRT | F82: 350 | G82: 175 | H82: 0 | I82: Forårsruller m.v.
A83: Capers Nonpareilles | B83: PARADISO | C83: 1 | D83: GL | F83: 177.71 | G83: 177.71 | H83: 0 | I83: Survarer m.v.
A84: Capersbær m/Stilk | B84: SUNBEST | C84: 2 | D84: GL | F84: 94.94 | G84: 47.47 | H84: 0 | I84: Survarer m.v.
A85: Cashewnøddekerner W320 | B85: ABL FOOD | C85: 2 | D85: PS | F85: 286.14 | G85: 143.07 | H85: 0 | I85: Nødder & Mandler
A86: Caterblommer Neutral Køl | B86: GALLINA | C86: 16 | D86: DK | F86: 2806.12 | G86: 175.3825 | H86: 0 | I86: Æg & Ægprodukter
A87: Caterhvider Køl | B87: GALLINA | C87: 7 | D87: DK | F87: 559.58 | G87: 79.94 | H87: 0 | I87: Æg & Ægprodukter
A88: CdO Chokoladeis | B88: CARTE D | C88: 2 | D88: SP | F88: 426.96 | G88: 213.48 | H88: 0 | I88: Iscreme
A89: CdO Jordbæris | B89: CARTE D | C89: 2 | D89: SP | F89: 396.96 | G89: 198.48 | H89: 0 | I89: Iscreme
A90: CdO Vaniljeis | B90: CARTE D | C90: 2 | D90: SP | F90: 396.96 | G90: 198.48 | H90: 0 | I90: Iscreme
A91: Cervelatpølse | B91: TULIP | C91: 2 | D91: STK | F91: 132.48 | G91: 66.24 | H91: 0 | I91: Pålæg
A92: Champignon Hel Grillet i Olie | B92: FELDTHUS | C92: 6 | D92: BT | F92: 543.78 | G92: 90.63 | H92: 0 | I92: Grøntkonserves
A93: Champignon i Bakke | B93: GRØNT | C93: 2 | D93: KG | F93: 84 | G93: 42 | H93: 0 | I93: Frisk Frugt og Grønt
A94: Champignon Rodskåret | B94: GRØNT | C94: 37.5 | D94: KG | F94: 860.8 | G94: 22.95466667 | H94: 0 | I94: Frisk Frugt og Grønt
A95: Cheddar Revet Rød | B95: FALENGR | C95: 18 | D95: PS | F95: 839.64 | G95: 46.64666667 | H95: 0 | I95: Ost
A96: ChickenWings Buffalo ExtraHot | B96: SALOMON | C96: 24 | D96: PS | F96: 3364.08 | G96: 140.17 | H96: 0 | I96: Kyllinger & Høns
A97: Chili Carolina Reaper | B97: GRØNT | C97: 0.3 | D97: KG | F97: 221.2 | G97: 737.3333333 | H97: 0 | I97: Frisk Frugt og Grønt
A98: Chili Grøn | B98: GRØNT | C98: 0.45 | D98: KG | F98: 22.95 | G98: 51 | H98: 0 | I98: Frisk Frugt og Grønt
A99: Chili Habanero | B99: GRØNT | C99: 1.05 | D99: KG | F99: 160.65 | G99: 153 | H99: 0 | I99: Frisk Frugt og Grønt
A100: Chili Mix | B100: GRØNT | C100: 0.07 | D100: KG | F100: 15.77 | G100: 225.2857143 | H100: 0 | I100: Frisk Frugt og Grønt
A101: Chili Rød | B101: GRØNT | C101: 0.15 | D101: KG | F101: 9.95 | G101: 66.33333333 | H101: 0 | I101: Frisk Frugt og Grønt
A102: Chilisauce Squeeze | B102: LINGHAM | C102: 36 | D102: FL | F102: 924.84 | G102: 25.69 | H102: 0 | I102: Saucer Soya m.v.
A103: Chilisauce Sriracha Hot | B103: LINGHAM | C103: 9 | D103: FL | F103: 390.96 | G103: 43.44 | H103: 0 | I103: Saucer Soya m.v.
A104: Chipotle Chili Paste | B104: SANTA M | C104: 1 | D104: DS | F104: 68.05 | G104: 68.05 | H104: 0 | I104: Krydderier
A105: Chokodråbe Mørk Bagestabil L | B105: CALLEBAU | C105: 2 | D105: PS | F105: 485.36 | G105: 242.68 | H105: 0 | I105: Chokolade & Marcipan
A106: Chokoladedrik Fantasy Blue UTZ | B106: DOUWE E | C106: 20 | D106: PS | F106: 971.8 | G106: 48.59 | H106: 0 | I106: Kaffe, The & Chokoladedrik
A107: Chorizo Extra Vela | B107: DELITAST | C107: 10.89 | D107: KG | F107: 710.46 | G107: 65.23966942 | H107: 0 | I107: Pålæg
A108: Chorizo Iberisk | B108: DELITAST | C108: 1.08 | D108: KG | F108: 100.12 | G108: 92.7037037 | H108: 0 | I108: Pålæg
A109: Chorizo San Polo 80 mm | B109: DELIKA | C109: 1.865 | D109: KG | F109: 114.81 | G109: 61.56032172 | H109: 0 | I109: Pålæg
A110: Cider Val de Rance Brut 4% Øko | B110: VAL DE R | C110: 12 | D110: FL | F110: 558 | G110: 46.5 | H110: 0 | I110: Øl og Sodavand
A111: Citron | B111: GRØNT | C111: 99 | D111: KG | F111: 2275.44 | G111: 22.98424242 | H111: 0 | I111: Frisk Frugt og Grønt
A112: Citrongræs ps | B112: GRØNT | C112: 0.1 | D112: KG | F112: 29.26 | G112: 292.6 | H112: 0 | I112: Frisk Frugt og Grønt
A113: Citronsaft | B113: REALEMON | C113: 1 | D113: FL | F113: 22.99 | G113: 22.99 | H113: 0 | I113: Kolonial
A114: Citronsaft | B114: VERIBEST | C114: 5 | D114: FL | F114: 92.3 | G114: 18.46 | H114: 0 | I114: Kolonial
A115: Citronsaft | B115: SVANSØ | C115: 2 | D115: FL | F115: 35.96 | G115: 17.98 | H115: 0 | I115: Saft Juice & Læskedrik
A116: Citronverbena i Bakke | B116: LEGRO | C116: 0.03 | D116: KG | F116: 24 | G116: 800 | H116: 0 | I116: Frisk Frugt og Grønt
A117: Comté Le Montagnard AOP | B117: ARNAUD | C117: 2.09 | D117: KG | F117: 283.11 | G117: 135.4593301 | H117: 0 | I117: Ost
A118: Cornflakes | B118: KELLOGGS | C118: 28 | D118: PK | F118: 813.68 | G118: =F118/C118 -> 29.06 | H118: 0 | I118: Kolonial
A119: CousCous Grov | B119: UNIFOOD | C119: 2 | D119: PS | F119: 81.86 | G119: 40.93 | H119: =E119*G119 -> 0 | I119: Kolonial
A120: CremeFraiche Arla Pro 18% | B120: ARLA PRO | C120: 2 | D120: SP | F120: 217.84 | G120: 108.92 | H120: 0 | I120: Mælk & Smør
A121: CremeFraiche Arla Pro 38% | B121: ARLA PRO | C121: 18 | D121: SP | F121: 2960.82 | G121: 164.49 | H121: 0 | I121: Mælk & Smør
A122: Curry Paste Grøn | B122: SANTA M | C122: 1 | D122: GL | F122: 37.92 | G122: 37.92 | H122: 0 | I122: Krydderier
A123: Curry Paste Rød | B123: SANTA M | C123: 2 | D123: GL | F123: 79.2 | G123: 39.6 | H123: 0 | I123: Krydderier
A124: Dadler/Baconsvøb | B124: LA SELVA | C124: 6 | D124: BK | F124: 1008.78 | G124: 168.13 | H124: 0 | I124: Færdigretter
A125: Demi Glace Okse Signature | B125: OSCAR | C125: 54 | D125: STK | F125: 3325.86 | G125: 61.59 | H125: 0 | I125: Saucer Soya m.v.
A126: Dijonsennep Original | B126: MAILLE | C126: 24 | D126: GL | F126: 469.44 | G126: 19.56 | H126: 0 | I126: Sennep Ketchup & Ristede Løg
A127: Dild i Bundt | B127: GRØNT | C127: 3.9 | D127: KG | F127: 459.04 | G127: 117.7025641 | H127: 0 | I127: Frisk Frugt og Grønt
A128: Drueagurker | B128: SAMSØ | C128: 1 | D128: DS | F128: 47.71 | G128: 47.71 | H128: 0 | I128: Survarer m.v.
A129: Duebryst Supreme 95 g | B129: CHARMILL | C129: 2.164 | D129: KG | F129: 861.47 | G129: 398.0914972 | H129: 0 | I129: Lam & Vildt m.v.
A130: Eddike u/Farve 5% | B130: HEIDELB | C130: 2 | D130: DK | F130: 80.52 | G130: 40.26 | H130: 0 | I130: Kolonial
A131: Eddike u/Farve 5% | B131: HEIDELB | C131: 12 | D131: FL | F131: 82.92 | G131: 6.91 | H131: 0 | I131: Kolonial
A132: Engelsk Sauce | B132: BEAUVAIS | C132: 18 | D132: FL | F132: 418.14 | G132: 23.23 | H132: 0 | I132: Saucer Soya m.v.
A133: Espagnol Sauce ReadyToUse | B133: OSCAR | C133: 12 | D133: STK | F133: 504.6 | G133: 42.05 | H133: 0 | I133: Saucer Soya m.v.
A134: Estragon i Bundt | B134: GRØNT | C134: 2.05 | D134: KG | F134: 615 | G134: 300 | H134: 0 | I134: Frisk Frugt og Grønt
A135: Eventyr Crowny Vaffel l/f | B135: EVENTYR | C135: 5 | D135: ÆSK | F135: 793.8 | G135: 158.76 | H135: 0 | I135: Iscreme
A136: Eventyr Yummy Top Isvaffel l/f | B136: EVENTYR | C136: 3 | D136: KRT | F136: 438.87 | G136: 146.29 | H136: 0 | I136: Iscreme
A137: Fedt i Portionspakning | B137: BEDSTEMO | C137: 1 | D137: PK | F137: 101.13 | G137: 101.13 | H137: 0 | I137: Olie & Fedtstoffer
A138: Fennikel | B138: GRØNT | C138: 31.8 | D138: KG | F138: 570.18 | G138: 17.93018868 | H138: 0 | I138: Frisk Frugt og Grønt
A139: Fersken Halv i Juice | B139: VIDECA | C139: 3 | D139: DS | F139: 126.18 | G139: 42.06 | H139: 0 | I139: Frugtkonserves
A140: Film PVC 8 my 0,45x300 m | B140: MULTI | C140: 12 | D140: RL | F140: 1013.16 | G140: 84.43 | H140: 0 | I140: Papir Plastposer & Sække
A141: Film PVC Cham 10 my 0,45x300 m | B141: MULTI | C141: 4 | D141: RL | F141: 466.4 | G141: 116.6 | H141: 0 | I141: Papir Plastposer & Sække
A142: Fishsauce Spicy World | B142: SANTA M | C142: 1 | D142: FL | F142: 22.78 | G142: 22.78 | H142: 0 | I142: Saucer Soya m.v.
A143: Fiskeben Torsk | B143: CAT FISK | C143: 15 | D143: KG | F143: 267.6 | G143: 17.84 | H143: 0 | I143: Fisk, fersk
A144: Fiskefilet Paneret 100-130 g | B144: NO NAME | C144: 10 | D144: KRT | F144: 2281.28 | G144: 228.128 | H144: 0 | I144: Fisk
A145: Flormelis DK | B145: DANSUKKE | C145: 60 | D145: PK | F145: 374.4 | G145: 6.24 | H145: 0 | I145: Melis & øvrige sukkerprodukter
A146: Fløde Double Cream 48% Øko | B146: NATURMÆL | C146: 1 | D146: DK | F146: 97.4 | G146: 97.4 | H146: 0 | I146: Mælk & Smør
A147: Flødeost Arla/Cream Cheese 25% | B147: ARLA PRO | C147: 1 | D147: SP | F147: 87.89 | G147: 87.89 | H147: 0 | I147: Ost
A148: Forloren Skildpadde | B148: FAABORG | C148: 10 | D148: DS | F148: 1013.4 | G148: 101.34 | H148: 0 | I148: Kødkonserves m.m.
A149: Forårsløg | B149: GRØNT | C149: 33.76 | D149: KG | F149: 1069.04 | G149: 31.66587678 | H149: 0 | I149: Frisk Frugt og Grønt
A150: Forårsrulle Classic Fyld 150 g | B150: DALOON | C150: 54 | D150: PS | F150: 2872.8 | G150: 53.2 | H150: 0 | I150: Forårsruller m.v.
A151: Frankfurter 110 g Frys | B151: STEFF | C151: 2 | D151: KRT | F151: 618 | G151: 309 | H151: 0 | I151: Svinekødsprodukter
A152: Frankfurter Bacon/Ramsløg 125g | B152: STEFF | C152: 2 | D152: KRT | F152: 661.16 | G152: 330.58 | H152: 0 | I152: Svinekødsprodukter
A153: Frankfurter Chili/Ched 125 g | B153: STEFF | C153: 6 | D153: PK | F153: 991.74 | G153: 165.29 | H153: 0 | I153: Svinekødsprodukter
A154: Frankfurter Grov 125 g | B154: STEFF | C154: 6 | D154: PS | F154: 991.74 | G154: 165.29 | H154: 0 | I154: Svinekødsprodukter
A155: Frankfurter Lille Klaus 125 g | B155: STEFF | C155: 4 | D155: KRT | F155: 1304.32 | G155: 326.08 | H155: 0 | I155: Svinekødsprodukter
A156: Friskost Arla/Fresh Cheese 16% | B156: ARLA PRO | C156: 1 | D156: SP | F156: 87.85 | G156: 87.85 | H156: 0 | I156: Ost
A157: Fritureolie | B157: NO NAME | C157: 10 | D157: DK | F157: 947.5 | G157: 94.75 | H157: 0 | I157: Olie & Fedtstoffer
A158: Fuglegræs | B158: GRØNT | C158: 0.42 | D158: KG | F158: 138.92 | G158: 330.7619048 | H158: 0 | I158: Frisk Frugt og Grønt
A159: Gamle Ole XL45+ ca 2 kg | B159: ARLA OST | C159: 1.913 | D159: KG | F159: 143.91 | G159: 75.22739153 | H159: 0 | I159: Ost
A160: Gammeldags Flødeis Bourbonvan | B160: PREMIER | C160: 9 | D160: SP | F160: 1932.66 | G160: 214.74 | H160: 0 | I160: Iscreme
A161: Gammeldags Flødeis Jordbær | B161: PREMIER | C161: 2 | D161: SP | F161: 429.5 | G161: 214.75 | H161: 0 | I161: Iscreme
A162: Garn Snøre Drug Twine 250 g | B162: MULTI | C162: 1 | D162: STK | F162: 94.78 | G162: 94.78 | H162: 0 | I162: Materiel Elpærer & Beklædning
A163: Glaskål friske | B163: GRØNT | C163: 14 | D163: KG | F163: 285 | G163: 20.35714286 | H163: 0 | I163: Frisk Frugt og Grønt
A164: Gorgonzola Galbani Grøn | B164: GALBANI | C164: 1.532 | D164: KG | F164: 123.97 | G164: 80.92036554 | H164: 0 | I164: Ost
A165: Granatæble | B165: GRØNT | C165: 4.08 | D165: KG | F165: 100.98 | G165: 24.75 | H165: 0 | I165: Frisk Frugt og Grønt
A166: Grapefrugt Rød | B166: GRØNT | C166: 9.24 | D166: KG | F166: 180.32 | G166: 19.51515152 | H166: 0 | I166: Frisk Frugt og Grønt
A167: Grillpølse 70 g Frys | B167: STEFF | C167: 6 | D167: KRT | F167: 1884.52 | G167: 314.0866667 | H167: 0 | I167: Svinekødsprodukter
A168: Grillpølse Ost 82 g | B168: STEFF | C168: 1 | D168: KRT | F168: 361.49 | G168: 361.49 | H168: 0 | I168: Svinekødsprodukter
A169: Grisefilet BBQ-Marineret | B169: TENDER P | C169: 14.4 | D169: KG | F169: 911.66 | G169: 63.30972222 | H169: 0 | I169: Svinekødsprodukter
A170: Grisefilet Gravad | B170: DELIKA | C170: 5.491 | D170: KG | F170: 612.8 | G170: 111.6008013 | H170: 0 | I170: Pålæg
A171: Grisekam m/Sv u/Ben/Hofte Rids | B171: D CROWN | C171: 38.81 | D171: KG | F171: 1385.52 | G171: 35.7000773 | H171: 0 | I171: Svinekød
A172: Grisekam u/Svær m/Ben | B172: AB SLAGT | C172: 40.14 | D172: KG | F172: 1627.28 | G172: 40.54010962 | H172: 0 | I172: Svinekød
A173: Grisekamben BBQ Forstegt | B173: VAN DM | C173: 19.76 | D173: KG | F173: 1457.3 | G173: 73.75 | H173: 0 | I173: Svinekødsprodukter
A174: Grisekamben Røget | B174: AB SLAGT | C174: 25 | D174: KG | F174: 1140 | G174: 45.6 | H174: 0 | I174: Svinekødsprodukter
A175: Grisekotelet u/Ben | B175: AB SLAGT | C175: 11.48 | D175: KG | F175: 569.52 | G175: 49.6097561 | H175: 0 | I175: Svinekød
A176: Grisekotelet u/Ben 140 g | B176: CATERKØD | C176: 5.62 | D176: KG | F176: 288.76 | G176: 51.38078292 | H176: 0 | I176: Svinekød
A177: Grisemørbrad Afp u/Bimørbrad | B177: CATERKØD | C177: 15.2 | D177: KG | F177: 1045.76 | G177: 68.8 | H177: 0 | I177: Svinekød
A178: Grisemørbrad m/Bimørbrad | B178: D CROWN | C178: 10 | D178: KRT | F178: 2480.5 | G178: 248.05 | H178: 0 | I178: Svinekød
A179: Grisemørbrad u/Bimørbrad | B179: D CROWN | C179: 1 | D179: KRT | F179: 257.13 | G179: 257.13 | H179: 0 | I179: Svinekød
A180: Grisemørbrad u/Streng | B180: KABCO | C180: 20 | D180: KG | F180: 937.8 | G180: 46.89 | H180: 0 | I180: Svinekød
A181: Grisenakkefilet Afpudset 1327 | B181: D CROWN | C181: 16.19 | D181: KG | F181: 592.55 | G181: 36.59975293 | H181: 0 | I181: Svinekød
A182: Grisespoleben Løsfrossen | B182: CATER F | C182: 20 | D182: KG | F182: 1063.8 | G182: =F182/C182 -> 53.19 | H182: 0 | I182: Svinekød
A183: Grisesvær m/Fedt 5 mm | B183: AB SLAGT | C183: 0.94 | D183: KG | F183: 26.73 | G183: 28.43617021 | H183: =E183*G183 -> 0 | I183: Svinekød
A184: Gruyere Blok AOP 6-Mdr CH | B184: LACTALIS | C184: 2.568 | D184: KG | F184: 495.73 | G184: 193.0412773 | H184: 0 | I184: Ost
A185: Græskar Muscat | B185: GRØNT | C185: 36 | D185: KG | F185: 538.56 | G185: 14.96 | H185: 0 | I185: Frisk Frugt og Grønt
A186: Græskarkerner | B186: SUN ISLA | C186: 57 | D186: PS | F186: 1927.5 | G186: 33.81578947 | H186: 0 | I186: Kolonial
A187: Græskarrugbrød f/b | B187: KOHBERG | C187: 4 | D187: KRT | F187: 550.68 | G187: 137.67 | H187: 0 | I187: Brød Bake Off
A188: Grønkål Kogt Sønderjysk Øko | B188: SDJ-KÅL | C188: 12 | D188: PK | F188: 339.12 | G188: 28.26 | H188: 0 | I188: Grønsager Dybfrost
A189: Grønkål Øko | B189: GRØNT | C189: 3 | D189: KG | F189: 226.8 | G189: 75.6 | H189: 0 | I189: Frisk Frugt og Grønt
A190: Grønkålblade Små | B190: GRØNT | C190: 1.8 | D190: KG | F190: 210.6 | G190: 117 | H190: 0 | I190: Frisk Frugt og Grønt
A191: Grønlangkål Vendsyssel Alm Øko | B191: GH FOOD | C191: 2 | D191: KRT | F191: 451.16 | G191: 225.58 | H191: 0 | I191: Grønsager Dybfrost
A192: Grøntsagsfond Konc 51 ltr | B192: OSCAR | C192: 6 | D192: FL | F192: 885.3 | G192: 147.55 | H192: 0 | I192: Saucer Soya m.v.
A193: Gulbeder | B193: GRØNT | C193: 5 | D193: KG | F193: 83.55 | G193: 16.71 | H193: 0 | I193: Frisk Frugt og Grønt
A194: Gule Ærter | B194: MØLLEREN | C194: 2 | D194: KRT | F194: 266.7 | G194: 133.35 | H194: 0 | I194: Kolonial
A195: Gulerødder 1 kg | B195: GRØNT | C195: 8 | D195: KG | F195: 67.5 | G195: 8.4375 | H195: 0 | I195: Frisk Frugt og Grønt
A196: Gulerødder i Sæk | B196: GRØNT | C196: 190 | D196: KG | F196: 1452.1 | G196: 7.642631579 | H196: 0 | I196: Frisk Frugt og Grønt
A197: Gulerødder m/Top | B197: GRØNT | C197: 37.2 | D197: KG | F197: 829.2 | G197: 22.29032258 | H197: 0 | I197: Frisk Frugt og Grønt
A198: Gulerødder Mini m/Top | B198: GRØNT | C198: 4 | D198: KG | F198: 600 | G198: 150 | H198: 0 | I198: Frisk Frugt og Grønt
A199: Gulerødder Mini Mix Farve | B199: GRØNT | C199: 4.8 | D199: KG | F199: 384 | G199: 80 | H199: 0 | I199: Frisk Frugt og Grønt
A200: Gulerødder Tern | B200: CATER | C200: 4 | D200: PS | F200: 76.72 | G200: 19.18 | H200: 0 | I200: Grønsager Dybfrost
... 635 more rows

Sheet Retter
A1: Menu | B1: Kolonne | C1: =VLOOKUP(Opskrifter!B2,Retter!A:B,2,FALSE) -> 10
A2: ½ kylling | B2: 10
A3: Apple pie | B3: 11
A4: Aspargessuppe | B4: 12
A5: Avocado m. rejer | B5: 13
A6: Bagt laks | B6: 14
A7: Barbecue kylling | B7: 15
A8: Biksemad | B8: 16
A9: Boller i karry | B9: 17
A10: Brownie m. is | B10: 18
A11: Bruchetta | B11: 19
A12: Brunsviger | B12: 20
A13: Brændende kærlighed | B13: 21
A14: Buffalo chicken | B14: 22
A15: Burger | B15: 23
A16: Butter chicken | B16: 24
A17: Butterdej m. skinke og broccoli | B17: 25
A18: Butterdejspakker | B18: 26
A19: Byg selv burger | B19: 27
A20: Byg selv sandwich | B20: 28
A21: Bøf bernaise | B21: 29
A22: Bøf m. rødvinssauce | B22: 30
A23: Bøf stroganoff | B23: 31
A24: Camembert frites | B24: 32
A25: Carbonara | B25: 33
A26: Cheesecake | B26: 34
A27: Chili con carne | B27: 35
A28: Chokolade fondant | B28: 36
A29: Chokoladekage | B29: 37
A30: Chokolademousse | B30: 38
A31: Citronfromage | B31: 39
A32: Citrontærte | B32: 40
A33: Club sandwich | B33: 41
A34: Coq au vin | B34: 42
A35: Creme brulee | B35: 43
A36: Cremet pasta m. laks | B36: 44
A37: Culottesteg | B37: 45
A38: Cæsarsalat m. kylling | B38: 46
A39: Dannebrogsgryde | B39: 47
A40: Dansk bøf | B40: 48
A41: Drømmekage | B41: 49
A42: Dunse sandwich | B42: 50
A43: Engelsk bøf | B43: 51
A44: Fish 'n' chips | B44: 52
A45: Fisk | B45: 53
A46: Fiskefilet m. remo | B46: 54
A47: Fiskefrikadeller | B47: 55
A48: Fiskesalat | B48: 56
A49: Flæskesteg | B49: 57
A50: Flæskestegssandwich | B50: 58
A51: Forloren hare | B51: 59
A52: Forårsruller | B52: 60
A53: Fransk løgsuppe | B53: 61
A54: Frikadeller | B54: 62
A55: Frikadeller m. hvidkål | B55: 63
A56: Frikadeller m. kartofler | B56: 64
A57: Frugtsalat m. råcreme | B57: 65
A58: Frugtsuppe | B58: 66
A59: Frugttærte | B59: 67
A60: Fyldt kylling | B60: 68
A61: Fyldte peberfrugter | B61: 69
A62: Gammeldaws oksesteg | B62: 70
A63: Gammeldaws æblekage | B63: 71
A64: Gazpacho | B64: 72
A65: Glaseret skinke | B65: 73
A66: Gratineret hvidløgsrejer | B66: 74
A67: Gratineret torsk | B67: 75
A68: Gravad laks | B68: 76
A69: Grillspyd | B69: 77
A70: Græske kødboller | B70: 78
A71: Gullash m. mos | B71: 79
A72: Hakkebøf m. bløde løg | B72: 80
A73: Hamburgerryg | B73: 81
A74: Hamburgerryg m. grønt | B74: 82
A75: Hellefisk | B75: 83
A76: Helstegt kylling | B76: 84
A77: Helstegt rødspætte | B77: 85
A78: Herregårdsbøf | B78: 86
A79: Herregårdsskinke | B79: 87
A80: Hindbærmousse | B80: 88
A81: Hot wings | B81: 89
A82: Hotdogs | B82: 90
A83: Hønsesuppe | B83: 91
A84: Indbagt laks | B84: 92
A85: Is | B85: 93
A86: Is m. vafler og guf | B86: 94
A87: Islagkage | B87: 95
A88: Jordbær m. fløde | B88: 96
A89: Jordskokkesuppe | B89: 97
A90: Kalkunbryst | B90: 98
A91: Kalv stegt som vildt | B91: 99
A92: Kalve culotte | B92: 100
A93: Kalvekoteletter | B93: 101
A94: Kalvemørbrad | B94: 102
A95: Kalvesteak m. pommes | B95: 103
A96: Kammusling | B96: 104
A97: Karbonader | B97: 105
A98: Karry würst | B98: 106
A99: Karrysuppe | B99: 107
A100: Kartoffelporresuppe | B100: 108
A101: Kebabmix | B101: 109
A102: Kokkens sorte gryde | B102: 110
A103: Koldskål | B103: 111
A104: Kong Frederiks livret | B104: 112
A105: Koteletter i fad | B105: 113
A106: Krebinetter | B106: 114
A107: Kylling | B107: 115
A108: Kylling i karry | B108: 116
A109: Kylling m. fries | B109: 117
A110: Kylling m. kartofsalat | B110: 118
A111: Kylling m. pommes | B111: 119
A112: Kylling thai karry | B112: 120
A113: Kylling/spinat lasagne | B113: 121
A114: Kyllinge-frikassé | B114: 122
A115: Kyllingeoverlår m. pasta | B115: 123
A116: Kyllingesandwich | B116: 124
A117: Kylling-spinat lasagne | B117: 125
A118: Kød/melbolle suppe | B118: 126
A119: Lagkage | B119: 127
A120: Laks m. hollandaise | B120: 128
A121: Laks m. stuvet spinat | B121: 129
A122: Laksefillet | B122: 130
A123: Lakseroulade | B123: 131
A124: Laksetatar | B124: 132
A125: Lammekølle | B125: 133
A126: Lasagne | B126: 134
A127: Limetærte | B127: 135
A128: Mac 'n' cheese | B128: 136
A129: Marineret mørbrad | B129: 137
A130: Mazarin | B130: 138
A131: Medister | B131: 139
A132: Mexi pandekager | B132: 140
A133: Mexiburger | B133: 141
A134: Mexicansk | B134: 142
A135: Millionbøf | B135: 143
A136: Moules frites | B136: 144
A137: Mørbrad m. bacon | B137: 145
A138: Mørbradgryde | B138: 146
A139: Nachos | B139: 147
A140: Nakkefilet | B140: 148
A141: Nøddebund m. hindbærmousse | B141: 149
A142: Oksefilet | B142: 150
A143: Oksefilet | B143: 151
A144: Ovnbagt laks | B144: 152
A145: Pandekager m. is | B145: 153
A146: Paneret stegt flæsk | B146: 154
A147: Panna cotta | B147: 155
A148: Paprikagryde | B148: 156
A149: Pariserbøf | B149: 157
A150: Pasta | B150: 158
A151: Pasta bolognese | B151: 159
A152: Pasta m. kødboller | B152: 160
A153: Pasta m. pesto/kylling | B153: 161
A154: Pastaret | B154: 162
A155: Peberbøf | B155: 163
A156: Peberhakkebøf | B156: 164
A157: Pirogger | B157: 165
A158: Pita | B158: 166
A159: Pizza | B159: 167
A160: Porchetta | B160: 168
A161: Pulled pork burger | B161: 169
A162: Purésuppe | B162: 170
A163: Pølsehorn | B163: 171
A164: Pølsemix | B164: 172
A165: Rabarbergrød | B165: 173
A166: Rabarbersuppe m. is | B166: 174
A167: Rabarbertrifli | B167: 175
A168: Rejecocktail | B168: 176
A169: Rejespyd | B169: 177
A170: Ribbenstegsburger | B170: 178
A171: Ris taffel | B171: 179
A172: Risengrød | B172: 180
A173: Rispapirsruller | B173: 181
A174: Ristet brød m. svampe | B174: 182
A175: Rodfrugtssuppe | B175: 183
A176: Rødgrød | B176: 184
A177: Rødtunge | B177: 185
A178: Saltimbocca | B178: 186
A179: Skaldyrsrisotto | B179: 187
A180: Skinkeschnitzler | B180: 188
A181: Skipperlabscovs | B181: 189
A182: Smuldrepai | B182: 190
A183: Spareribs | B183: 191
A184: Steaks | B184: 192
A185: Stegt flæsk | B185: 193
A186: Stegt tun | B186: 194
A187: Stegte rejer i hvidløg | B187: 195
A188: Stjerneskud | B188: 196
A189: Suppe | B189: 197
A190: Svamperisotto | B190: 198
A191: Svensk pølseret | B191: 199
A192: Svin a la creme | B192: 200
A193: Svinekoteletter | B193: 201
A194: Svinemørbrad | B194: 202
A195: Svøbt asparges | B195: 203
A196: Tacoskaller | B196: 204
A197: Tarteletter | B197: 205
A198: Tatar | B198: 206
A199: T-bone steak | B199: 207
A200: Thaisuppe m. kylling | B200: 208
... 19 more rows

Sheet Indkøb
A1: Ingridienser | B1: Indkøb | C1: Enhed
A2: =IFERROR(INDEX(Opskrifter!$A$6:$A$43,SMALL(IF(Opskrifter!$B$6:$B$43<>0,ROW(Opskrifter!$A$6:$A$43)-CELL("row",Opskrifter!$A$6:$A$43)+1),ROWS($1:1))),"") -> Agurkesalat | B2: =IFERROR(VLOOKUP(A2,Opskrifter!$A$6:$C$35,2,FALSE),"") -> 1 | C2: =IFERROR(VLOOKUP(A2,Opskrifter!$A$6:$C$35,3,FALSE),"") -> DS
A3: =IFERROR(INDEX(Opskrifter!$A$6:$A$43,SMALL(IF(Opskrifter!$B$6:$B$43<>0,ROW(Opskrifter!$A$6:$A$43)-CELL("row",Opskrifter!$A$6:$A$43)+1),ROWS($1:2))),"") -> Kylling Griller 1300 g | B3: =IFERROR(VLOOKUP(A3,Opskrifter!$A$6:$C$35,2,FALSE),"") -> 1 | C3: =IFERROR(VLOOKUP(A3,Opskrifter!$A$6:$C$35,3,FALSE),"") -> STK
A4: =IFERROR(INDEX(Opskrifter!$A$6:$A$43,SMALL(IF(Opskrifter!$B$6:$B$43<>0,ROW(Opskrifter!$A$6:$A$43)-CELL("row",Opskrifter!$A$6:$A$43)+1),ROWS($1:3))),"") -> Remoulade | B4: =IFERROR(VLOOKUP(A4,Opskrifter!$A$6:$C$35,2,FALSE),"") -> 1 | C4: =IFERROR(VLOOKUP(A4,Opskrifter!$A$6:$C$35,3,FALSE),"") -> FL
A5: =IFERROR(INDEX(Opskrifter!$A$6:$A$43,SMALL(IF(Opskrifter!$B$6:$B$43<>0,ROW(Opskrifter!$A$6:$A$43)-CELL("row",Opskrifter!$A$6:$A$43)+1),ROWS($1:4))),"") ->  | B5: =IFERROR(VLOOKUP(A5,Opskrifter!$A$6:$C$35,2,FALSE),"") ->  | C5: =IFERROR(VLOOKUP(A5,Opskrifter!$A$6:$C$35,3,FALSE),"") -> 
A6: =IFERROR(INDEX(Opskrifter!$A$6:$A$43,SMALL(IF(Opskrifter!$B$6:$B$43<>0,ROW(Opskrifter!$A$6:$A$43)-CELL("row",Opskrifter!$A$6:$A$43)+1),ROWS($1:5))),"") ->  | B6: =IFERROR(VLOOKUP(A6,Opskrifter!$A$6:$C$35,2,FALSE),"") ->  | C6: =IFERROR(VLOOKUP(A6,Opskrifter!$A$6:$C$35,3,FALSE),"") -> 
A7: =IFERROR(INDEX(Opskrifter!$A$6:$A$43,SMALL(IF(Opskrifter!$B$6:$B$43<>0,ROW(Opskrifter!$A$6:$A$43)-CELL("row",Opskrifter!$A$6:$A$43)+1),ROWS($1:6))),"") ->  | B7: =IFERROR(VLOOKUP(A7,Opskrifter!$A$6:$C$35,2,FALSE),"") ->  | C7: =IFERROR(VLOOKUP(A7,Opskrifter!$A$6:$C$35,3,FALSE),"") -> 
A8: =IFERROR(INDEX(Opskrifter!$A$6:$A$43,SMALL(IF(Opskrifter!$B$6:$B$43<>0,ROW(Opskrifter!$A$6:$A$43)-CELL("row",Opskrifter!$A$6:$A$43)+1),ROWS($1:7))),"") ->  | B8: =IFERROR(VLOOKUP(A8,Opskrifter!$A$6:$C$35,2,FALSE),"") ->  | C8: =IFERROR(VLOOKUP(A8,Opskrifter!$A$6:$C$35,3,FALSE),"") -> 
A9: =IFERROR(INDEX(Opskrifter!$A$6:$A$43,SMALL(IF(Opskrifter!$B$6:$B$43<>0,ROW(Opskrifter!$A$6:$A$43)-CELL("row",Opskrifter!$A$6:$A$43)+1),ROWS($1:8))),"") ->  | B9: =IFERROR(VLOOKUP(A9,Opskrifter!$A$6:$C$35,2,FALSE),"") ->  | C9: =IFERROR(VLOOKUP(A9,Opskrifter!$A$6:$C$35,3,FALSE),"") -> 
A10: =IFERROR(INDEX(Opskrifter!$A$6:$A$43,SMALL(IF(Opskrifter!$B$6:$B$43<>0,ROW(Opskrifter!$A$6:$A$43)-CELL("row",Opskrifter!$A$6:$A$43)+1),ROWS($1:9))),"") ->  | B10: =IFERROR(VLOOKUP(A10,Opskrifter!$A$6:$C$35,2,FALSE),"") ->  | C10: =IFERROR(VLOOKUP(A10,Opskrifter!$A$6:$C$35,3,FALSE),"") -> 
A11: =IFERROR(INDEX(Opskrifter!$A$6:$A$43,SMALL(IF(Opskrifter!$B$6:$B$43<>0,ROW(Opskrifter!$A$6:$A$43)-CELL("row",Opskrifter!$A$6:$A$43)+1),ROWS($1:10))),"") ->  | B11: =IFERROR(VLOOKUP(A11,Opskrifter!$A$6:$C$35,2,FALSE),"") ->  | C11: =IFERROR(VLOOKUP(A11,Opskrifter!$A$6:$C$35,3,FALSE),"") -> 
A12: =IFERROR(INDEX(Opskrifter!$A$6:$A$43,SMALL(IF(Opskrifter!$B$6:$B$43<>0,ROW(Opskrifter!$A$6:$A$43)-CELL("row",Opskrifter!$A$6:$A$43)+1),ROWS($1:11))),"") ->  | B12: =IFERROR(VLOOKUP(A12,Opskrifter!$A$6:$C$35,2,FALSE),"") ->  | C12: =IFERROR(VLOOKUP(A12,Opskrifter!$A$6:$C$35,3,FALSE),"") -> 
A13: =IFERROR(INDEX(Opskrifter!$A$6:$A$43,SMALL(IF(Opskrifter!$B$6:$B$43<>0,ROW(Opskrifter!$A$6:$A$43)-CELL("row",Opskrifter!$A$6:$A$43)+1),ROWS($1:12))),"") ->  | B13: =IFERROR(VLOOKUP(A13,Opskrifter!$A$6:$C$35,2,FALSE),"") ->  | C13: =IFERROR(VLOOKUP(A13,Opskrifter!$A$6:$C$35,3,FALSE),"") -> 
A14: =IFERROR(INDEX(Opskrifter!$A$6:$A$43,SMALL(IF(Opskrifter!$B$6:$B$43<>0,ROW(Opskrifter!$A$6:$A$43)-CELL("row",Opskrifter!$A$6:$A$43)+1),ROWS($1:13))),"") ->  | B14: =IFERROR(VLOOKUP(A14,Opskrifter!$A$6:$C$35,2,FALSE),"") ->  | C14: =IFERROR(VLOOKUP(A14,Opskrifter!$A$6:$C$35,3,FALSE),"") -> 
B15: =IFERROR(VLOOKUP(A15,Opskrifter!$A$6:$C$35,2,FALSE),"") ->  | C15: =IFERROR(VLOOKUP(A15,Opskrifter!$A$6:$C$35,3,FALSE),"") -> 
B16: =IFERROR(VLOOKUP(A16,Opskrifter!$A$6:$C$35,2,FALSE),"") ->  | C16: =IFERROR(VLOOKUP(A16,Opskrifter!$A$6:$C$35,3,FALSE),"") -> 
B17: =IFERROR(VLOOKUP(A17,Opskrifter!$A$6:$C$35,2,FALSE),"") ->  | C17: =IFERROR(VLOOKUP(A17,Opskrifter!$A$6:$C$35,3,FALSE),"") -> 
B18: =IFERROR(VLOOKUP(A18,Opskrifter!$A$6:$C$35,2,FALSE),"") ->  | C18: =IFERROR(VLOOKUP(A18,Opskrifter!$A$6:$C$35,3,FALSE),"") -> 
B19: =IFERROR(VLOOKUP(A19,Opskrifter!$A$6:$C$35,2,FALSE),"") ->  | C19: =IFERROR(VLOOKUP(A19,Opskrifter!$A$6:$C$35,3,FALSE),"") -> 
B20: =IFERROR(VLOOKUP(A20,Opskrifter!$A$6:$C$35,2,FALSE),"") ->  | C20: =IFERROR(VLOOKUP(A20,Opskrifter!$A$6:$C$35,3,FALSE),"") -> 
B21: =IFERROR(VLOOKUP(A21,Opskrifter!$A$6:$C$35,2,FALSE),"") -> 
B22: =IFERROR(VLOOKUP(A22,Opskrifter!$A$6:$C$35,2,FALSE),"") -> 
B23: =IFERROR(VLOOKUP(A23,Opskrifter!$A$6:$C$35,2,FALSE),"") -> 
